bitfinex/quotes_SOLUSD_20251001
["timestamp","ask_amount","ask_price","bid_price","bid_amount"]
[1759295052293,4.78652115,208.92,208.9,34.29]
[1759295052509,4.78652115,208.92,208.91,0.67]
[1759295053188,12.06573014,208.93,208.91,0.67]
[1759295053189,0.1,208.93,208.91,0.67]
[1759295053388,4.88640537,208.93,208.9,33.62]
[1759295053618,4.88640537,208.93,208.92,0.67]
[1759295054531,0.1,208.93,208.92,0.67]
[1759295054824,0.1,208.93,208.92,12.22688283]
[1759295054986,0.1,208.93,208.92,28.24036168]
[1759295057728,0.1,208.93,208.92,33.02688283]
[1759295058018,0.1,208.93,208.92,28.24036168]
[1759295058917,0.1,208.93,208.92,61.84036168]
[1759295060106,0.1,208.93,208.92,41.04036168]
[1759295060910,4.88629205,208.93,208.9,20.6]
[1759295061116,4.88629205,208.93,208.92,33.6]
[1759295061618,4.88629205,208.93,208.91,0.72]
[1759295061619,4.88629205,208.93,208.86,37.32]
[1759295062502,3.20122232,208.92,208.86,37.32]
[1759295062708,3.20122232,208.91,208.87,33.6]
[1759295062896,3.20122232,208.9,208.87,33.6]
[1759295063104,3.20122232,208.92,208.87,33.6]
[1759295063302,3.20122232,208.91,208.87,33.6]
[1759295063516,3.20122232,208.9,208.88,0.72]
[1759295063823,3.20122232,208.92,208.89,34.32]
[1759295064125,7.98804954,208.91,208.9,37.32]
[1759295064799,3.20122232,208.91,208.9,38.04]
[1759295065203,3.20122232,208.92,208.9,38.04]
[1759295065522,4.88651527,208.93,208.91,33.6]
[1759295068614,4.88651527,208.93,208.91,34.32]
[1759295069413,4.88651527,208.93,208.92,0.72]
[1759295069930,0.1,208.93,208.92,0.72]
[1759295070302,4.88635962,208.93,208.91,33.6]
[1759295070600,4.88635962,208.93,208.91,34.32]
[1759295072516,4.88635962,208.93,208.91,33.6]
[1759295072820,4.88635962,208.93,208.91,34.32]
[1759295073620,0.1,208.93,208.91,33.6]
[1759295073833,0.1,208.93,208.91,34.32]
[1759295074924,4.88636421,208.93,208.91,34.32]
[1759295076034,4.88636421,208.93,208.92,0.72]
[1759295076225,4.88636421,208.93,208.91,33.6]
[1759295076537,4.88636421,208.93,208.91,34.32]
[1759295079125,0.1,208.93,208.92,0.72]
[1759295079329,0.8,208.93,208.92,33.6]
[1759295079633,13.59559401,208.92,208.9,37.32]
[1759295079838,14.29559401,208.91,208.9,37.32]
[1759295080044,0.28432314,208.89,208.86,37.32]
[1759295080210,0.7,208.88,208.87,70.92]
[1759295080608,16.7811518,208.88,208.87,70.92]
[1759295081440,13.87991715,208.87,208.78,0.72]
[1759295081740,2.20123465,208.86,208.78,0.72]
[1759295081920,13.59559401,208.84,208.78,0.72]
[1759295082533,0.7,208.84,208.79,33.6]
[1759295082716,0.7,208.83,208.79,33.6]
[1759295082919,13.59559401,208.81,208.79,33.6]
[1759295083117,2.20123465,208.84,208.79,33.6]
[1759295083118,14.29559401,208.8,208.79,33.6]
[1759295083347,19.08486604,208.8,208.79,33.6]
[1759295085332,18.38486604,208.8,208.79,33.6]
[1759295086232,19.08486604,208.8,208.79,33.6]
[1759295086832,18.38486604,208.8,208.79,33.6]
[1759295087537,19.08486604,208.8,208.79,33.6]
[1759295088237,18.38486604,208.8,208.79,33.6]
[1759295089930,18.38486604,208.8,208.79,70.92]
[1759295094126,19.06486604,208.8,208.79,70.92]
[1759295094544,18.38486604,208.8,208.79,70.92]
[1759295095345,12.15559401,208.8,208.79,71.62]
[1759295095547,35.17504492,208.88,208.82,20.8]
[1759295095548,14.37504492,208.88,208.82,20.8]
[1759295095752,14.37504492,208.88,208.83,40.88623444]
[1759295095960,19.16250401,208.88,208.83,7.28623444]
[1759295096138,19.84250401,208.88,208.84,33.74]
[1759295096541,5.46745909,208.88,208.84,33.74]
[1759295098343,0.68,208.87,208.83,7.28623444]
[1759295098537,0.68,208.86,208.84,33.72]
[1759295099839,19.06280258,208.89,208.84,33.72]
[1759295100041,0.68,208.88,208.84,33.72]
[1759295100959,0.68,208.87,208.84,33.72]
[1759295101328,18.38280258,208.89,208.84,33.72]
[1759295101536,0.68,208.88,208.84,33.72]
[1759295101960,5.46744912,208.88,208.84,33.72]
[1759295102346,4.78744912,208.88,208.84,33.72]
[1759295102528,5.46744912,208.88,208.84,33.72]
[1759295103452,0.68,208.87,208.84,33.72]
[1759295104757,0.68,208.9,208.84,38.50830035]
[1759295104956,0.68,208.9,208.84,33.72]
[1759295105671,4.78720857,208.89,208.84,33.72]
[1759295106563,25.5618969,208.92,208.84,38.50821032]
[1759295106564,13.59559401,208.92,208.84,38.50821032]
[1759295106746,5.56632446,208.93,208.84,50.47909712]
[1759295107344,16.8520546,208.93,208.84,38.50821032]
[1759295107564,0.68,208.92,208.84,38.50821032]
[1759295108241,0.1,208.93,208.84,38.50821032]
[1759295108577,0.1,208.93,208.87,20.8]
[1759295108791,0.1,208.93,208.91,20.8]
[1759295108936,0.1,208.93,208.92,33.7]
[1759295110074,0.1,208.93,208.92,52.54881178]
[1759295110367,0.1,208.93,208.92,89.86881178]
[1759295111368,0.1,208.93,208.92,71.02]
[1759295111574,0.1,208.93,208.92,91.82]
[1759295111870,0.1,208.93,208.92,96.60652115]
[1759295112278,0.1,208.93,208.92,58.12]
[1759295112463,0.78,208.93,208.92,71.04]
[1759295112973,0.1,208.93,208.92,71.04]
[1759295113464,5.56629205,208.93,208.92,37.32]
[1759295113652,5.56629205,208.93,208.92,71.04]
[1759295114156,0.78,208.93,208.92,71.04]
[1759295114363,5.56629205,208.93,208.92,71.04]
[1759295114565,4.88629205,208.93,208.92,71.04]
[1759295114767,0.1,208.93,208.92,71.04]
[1759295115255,0.1,208.93,208.92,108.36]
[1759295115450,0.1,208.93,208.92,113.14652115]
[1759295116259,0.1,208.93,208.92,108.36]
[1759295116461,0.1,208.93,208.92,113.14652115]
[1759295121168,0.1,208.93,208.92,134.35155702]
[1759295121358,0.1,208.93,208.92,140.90964035]
[1759295122372,0.1,208.93,208.92,88.52320205]
[1759295122555,0.1,208.93,208.92,108.4]
[1759295122760,0.78,208.93,208.92,108.4]
[1759295122957,0.78,208.93,208.92,129.2]
[1759295124284,0.1,208.93,208.92,129.2]
[1759295124659,0.1,208.93,208.92,133.98652115]
[1759295132567,0.1,208.93,208.92,113.18652115]
[1759295133790,0.1,208.93,208.92,74.64]
[1759295133960,0.77,208.93,208.92,129.18]
[1759295134858,0.1,208.93,208.92,133.96652115]
[1759295142465,0.1,208.93,208.92,113.16652115]
[1759295142660,0.1,208.93,208.92,140.92964035]
[1759295143965,0.1,208.93,208.92,93.3097232]
[1759295144165,0.77,208.93,208.92,120.43163987]
[1759295145074,0.1,208.93,208.92,120.43163987]
[1759295146992,0.1,208.93,208.92,140.86964035]
[1759295149976,0.1,208.93,208.92,93.3097232]
[1759295150313,0.1,208.93,208.92,126.9897232]
[1759295155294,0.1,208.93,208.92,132.4897232]
[1759295157798,0.75,208.93,208.92,132.4897232]
[1759295158192,0.75,208.93,208.92,126.9897232]
[1759295159308,0.1,208.93,208.92,126.9897232]
[1759295159489,0.75,208.93,208.92,126.9897232]
[1759295160392,0.1,208.93,208.92,126.9897232]
[1759295161385,0.75,208.93,208.92,126.9897232]
[1759295162211,0.1,208.93,208.92,126.9897232]
[1759295162608,0.65,208.95,208.92,138.95602609]
[1759295164116,0.65,208.95,208.92,153.67461439]
[1759295165705,0.65,208.99,208.92,153.67461439]
[1759295165899,0.65,208.99,208.92,125.49461439]
[1759295166231,19.5,209.01,208.93,37.3]
[1759295166232,20.8,208.97,208.93,37.3]
[1759295166397,0.65,208.96,208.86,4.78789619]
[1759295166710,0.65,208.95,208.86,4.78789619]
[1759295166914,20.8,208.93,208.83,16.75953012]
[1759295167121,0.65,208.92,208.83,4.78858401]
[1759295167297,0.65,208.91,208.83,4.78858401]
[1759295167619,0.65,208.91,208.84,33.62]
[1759295167989,0.65,208.91,208.84,40.17808333]
[1759295168796,0.65,208.91,208.85,4.78812544]
[1759295169020,0.65,208.91,208.86,33.62]
[1759295169319,0.65,208.9,208.86,33.62]
[1759295170006,4.78663393,208.92,208.87,42.08766696]
[1759295170202,0.65,208.92,208.88,33.6]
[1759295170825,26.2357759,208.96,208.88,33.6]
[1759295171496,21.45,208.96,208.88,33.6]
[1759295171706,0.65,208.96,208.88,40.15808333]
[1759295171902,0.65,208.96,208.89,4.78720857]
[1759295171903,21.45,208.96,208.89,4.78720857]
[1759295172113,21.45,208.96,208.9,33.6]
[1759295172518,26.23561318,208.96,208.9,33.6]
[1759295173089,21.45,208.96,208.9,33.6]
[1759295174310,26.23562549,208.96,208.9,33.6]
[1759295175013,0.65,208.95,208.9,33.6]
[1759295175199,0.65,208.94,208.9,33.6]
[1759295175515,0.65,208.93,208.88,11.34549507]
[1759295175723,0.65,208.92,208.89,33.6]
[1759295175923,37.54963774,208.96,208.89,33.6]
[1759295176119,0.65,208.95,208.89,33.6]
[1759295176296,0.65,208.94,208.89,33.6]
[1759295176498,5.43630255,208.93,208.89,33.6]
[1759295176927,0.65,208.92,208.89,33.6]
[1759295180835,0.65,208.92,208.89,38.38711752]
[1759295181125,0.7,208.94,208.89,38.38711752]
[1759295181630,0.7,208.93,208.89,38.38711752]
[1759295182927,0.7,208.92,208.89,33.6]
[1759295184122,4.78637163,208.93,208.89,33.6]
[1759295184537,5.49637163,208.93,208.89,33.6]
[1759295184744,4.786075,208.94,208.89,38.38711879]
[1759295184925,4.78583393,208.95,208.89,38.38711879]
[1759295185125,0.71,208.94,208.89,39.10711879]
[1759295185326,0.71,208.94,208.9,0.72]
[1759295185648,0.71,208.94,208.89,38.38711879]
[1759295185842,0.71,208.94,208.89,39.10711879]
[1759295186235,0.71,208.94,208.92,71.8764365]
[1759295186547,0.71,208.94,208.93,33.62]
[1759295188267,0.71,208.94,208.93,70.94]
[1759295188447,5.49606298,208.94,208.93,70.94]
[1759295190139,0.71,208.94,208.93,70.94]
[1759295190953,5.49606298,208.94,208.93,70.94]
[1759295191352,20.8,208.94,208.93,70.94]
[1759295192240,0.71,209.0,208.93,71.66]
[1759295192434,26.42166562,209.02,208.93,71.66]
[1759295192629,0.71,209.01,208.93,71.66]
[1759295192833,20.8,208.99,208.93,71.66]
[1759295193034,21.51,208.99,208.93,71.66]
[1759295193248,21.51,208.99,208.93,76.44629205]
[1759295194047,26.29503354,208.99,208.93,76.44629205]
[1759295196048,21.51,208.99,208.93,83.00437538]
[1759295196356,20.8,208.99,208.94,7.27808333]
[1759295196554,0.71,208.98,208.95,33.6]
[1759295197060,5.49463401,209.01,208.96,0.72]
[1759295197246,0.71,209.0,208.97,33.6]
[1759295197449,0.71,208.99,208.97,33.6]
[1759295198358,4.78488271,209.0,208.97,33.6]
[1759295198559,5.49488271,209.0,208.97,33.6]
[1759295198866,0.71,208.99,208.97,33.6]
[1759295199050,0.71,208.98,208.97,33.6]
[1759295199459,5.49488271,209.0,208.97,33.6]
[1759295199659,0.71,208.99,208.97,33.6]
[1759295199969,0.71,208.98,208.97,33.6]
[1759295201669,5.4951469,208.98,208.97,33.6]
[1759295203069,0.71,208.98,208.97,33.6]
[1759295203238,0.71,209.01,208.97,33.6]
[1759295203434,0.71,209.0,208.97,33.6]
[1759295203838,0.71,208.99,208.97,33.6]
[1759295204038,0.71,208.98,208.97,33.6]
[1759295205542,5.4949125,209.0,208.97,33.6]
[1759295205743,4.7849125,209.0,208.97,33.6]
[1759295205957,0.71,209.0,208.97,33.6]
[1759295206338,4.78446261,209.01,208.97,33.6]
[1759295206538,0.71,208.99,208.97,33.6]
[1759295206758,0.71,208.98,208.97,33.6]
[1759295206970,4.7851469,208.98,208.97,33.6]
[1759295207269,26.2951469,208.98,208.97,33.6]
[1759295208176,20.8,208.98,208.97,33.6]
[1759295208544,26.2951469,208.98,208.97,33.6]
[1759295209267,21.51,208.98,208.97,33.6]
[1759295209469,20.8,208.98,208.97,33.6]
[1759295210048,0.71,209.0,208.97,33.6]
[1759295210241,20.8,209.01,208.97,33.6]
[1759295210448,0.71,209.0,208.97,33.6]
[1759295211562,4.78464388,209.01,208.97,33.6]
[1759295211749,20.8,209.0,208.97,33.6]
[1759295212171,21.51,209.0,208.97,33.6]
[1759295212557,26.29479587,209.0,208.97,33.6]
[1759295213272,4.78479587,209.0,208.97,33.6]
[1759295213459,0.69,208.99,208.97,33.6]
[1759295213772,0.69,208.98,208.97,33.6]
[1759295214547,5.4751469,208.98,208.97,33.6]
[1759295216873,0.69,208.98,208.97,33.6]
[1759295218178,5.4751469,208.98,208.97,33.6]
[1759295219572,0.69,208.98,208.97,33.6]
[1759295219774,25.58447418,209.01,208.97,34.32]
[1759295220179,26.27447418,209.01,208.97,34.32]
[1759295220371,25.58447418,209.01,208.97,34.32]
[1759295220566,20.8,209.0,208.98,37.3]
[1759295220773,26.27447418,209.01,208.98,37.3]
[1759295221561,14.36059452,209.0,208.98,37.3]
[1759295221778,25.58447418,209.01,208.98,37.3]
[1759295221951,0.69,209.0,208.98,37.3]
[1759295222656,21.49,209.0,208.99,33.6]
[1759295223192,20.8,209.0,208.99,33.6]
[1759295223570,0.1,209.03,208.99,51.06721277]
[1759295223763,0.1,209.09,209.03,20.8]
[1759295223967,0.1,209.09,209.07,20.8]
[1759295224181,0.1,209.09,209.08,33.58]
[1759295224488,0.69,209.08,209.07,20.8]
[1759295224687,0.69,209.08,209.07,54.38]
[1759295224858,0.69,209.08,209.07,20.8]
[1759295225059,0.69,209.08,209.07,54.38]
[1759295225280,0.69,209.08,209.07,33.62]
[1759295225699,0.1,209.09,209.07,34.14]
[1759295225997,0.1,209.09,209.08,21.32]
[1759295226166,0.1,209.09,209.08,28.32617277]
[1759295226366,0.1,209.09,209.08,61.44617277]
[1759295226888,0.1,209.09,209.08,61.96617277]
[1759295227796,0.1,209.09,209.08,66.749031]
[1759295229380,0.1,209.09,209.08,74.50043554]
[1759295229591,0.1,209.09,209.08,74.02214972]
[1759295230090,0.1,209.09,209.08,74.30647286]
[1759295230567,0.1,209.11,209.09,13.87991715]
[1759295230766,0.1,209.11,209.1,54.52608992]
[1759295230991,0.1,209.11,209.1,55.04608992]
[1759295231191,0.1,209.11,209.1,61.74113084]
[1759295231402,0.1,209.11,209.1,69.01424956]
[1759295231692,0.1,209.11,209.1,83.38424956]
[1759295231881,0.1,209.11,209.1,21.49433241]
[1759295232088,0.1,209.11,209.1,53.22169225]
[1759295232265,0.1,209.11,209.1,53.50601539]
[1759295232597,0.1,209.11,209.1,67.1016094]
[1759295235690,0.1,209.11,209.1,33.4616094]
[1759295236003,0.1,209.11,209.1,67.0816094]
[1759295236406,0.1,209.11,209.1,67.55984947]
[1759295236590,0.1,209.11,209.1,67.0816094]
[1759295236797,0.1,209.11,209.1,68.99406666]
[1759295237197,0.1,209.11,209.1,83.06147038]
[1759295237595,1e-08,209.11,209.1,83.06147038]
[1759295237888,0.1,209.12,209.1,83.06147038]
[1759295237889,1e-08,209.12,209.11,13.87991715]
[1759295238121,0.1,209.13,209.11,29.15742584]
[1759295238122,1e-08,209.13,209.11,29.15742584]
[1759295238292,1e-08,209.13,209.12,46.21243929]
[1759295238480,1e-08,209.13,209.12,53.48555801]
[1759295238680,0.1,209.14,209.12,53.48555801]
[1759295238681,1e-08,209.14,209.13,0.28432314]
[1759295238911,1e-08,209.14,209.13,15.08361463]
[1759295239216,1e-08,209.14,209.13,29.15738011]
[1759295239512,0.1,209.24,209.18,0.28432314]
[1759295239807,0.1,209.24,209.19,71.68432314]
[1759295240394,0.1,209.24,209.19,76.46466636]
[1759295240841,0.1,209.24,209.19,83.47083913]
[1759295241006,0.79,209.24,209.19,83.47083913]
[1759295241186,0.79,209.24,209.19,83.51083913]
[1759295242313,0.79,209.24,209.19,82.99083913]
[1759295242999,0.69,209.22,209.19,49.35083913]
[1759295243200,0.69,209.22,209.19,82.97083913]
[1759295243698,0.1,209.24,209.19,82.97083913]
[1759295243904,0.82,209.24,209.19,82.97083913]
[1759295244403,0.72,209.23,209.19,49.35083913]
[1759295244714,0.72,209.22,209.19,97.32083913]
[1759295244927,0.72,209.22,209.19,82.95083913]
[1759295245416,0.75,209.24,209.19,82.95083913]
[1759295245791,0.65,209.23,209.19,82.95083913]
[1759295246606,0.1,209.24,209.19,83.47083913]
[1759295246917,0.1,209.24,209.19,49.35083913]
[1759295247119,0.75,209.2,209.19,82.66651599]
[1759295247293,0.1,209.2,209.19,82.66651599]
[1759295250204,0.1,209.2,209.19,125.42651599]
[1759295251401,0.1,209.2,209.19,91.82651599]
[1759295251605,0.1,209.2,209.19,125.42651599]
[1759295256820,0.1,209.2,209.19,125.94651599]
[1759295257113,0.1,209.2,209.19,141.59955186]
[1759295259795,0.1,209.2,209.19,107.47955186]
[1759295260013,0.1,209.2,209.19,141.01955186]
[1759295260902,0.1,209.2,209.19,169.76955186]
[1759295261714,0.1,209.2,209.19,170.28955186]
[1759295262697,0.1,209.2,209.19,169.76955186]
[1759295266919,0.75,209.2,209.19,88.81929149]
[1759295267103,0.75,209.2,209.19,112.86034322]
[1759295267519,0.1,209.2,209.19,112.86034322]
[1759295267828,0.1,209.2,209.19,119.66629187]
[1759295269227,0.1,209.2,209.19,123.42694498]
[1759295270129,0.1,209.2,209.19,130.98438684]
[1759295272231,0.1,209.2,209.19,144.57998085]
[1759295272532,0.1,209.2,209.19,148.58131518]
[1759295273630,0.76,209.2,209.19,134.98572117]
[1759295274008,0.1,209.2,209.19,101.44572117]
[1759295274208,0.1,209.2,209.19,134.98572117]
[1759295274420,0.1,209.2,209.19,130.98438684]
[1759295276320,0.76,209.2,209.19,81.34594865]
[1759295276523,0.76,209.2,209.19,114.88594865]
[1759295277040,0.76,209.2,209.19,120.38594865]
[1759295277546,0.76,209.2,209.19,114.88594865]
[1759295278411,0.76,209.2,209.19,81.34594865]
[1759295278626,0.76,209.2,209.19,70.8]
[1759295281361,0.76,209.2,209.19,96.38034322]
[1759295281848,0.76,209.2,209.19,91.6]
[1759295282429,0.76,209.2,209.19,96.38034322]
[1759295282947,0.76,209.2,209.19,37.26]
[1759295283250,0.76,209.2,209.19,70.8]
[1759295283740,0.76,209.2,209.19,75.58034322]
[1759295283946,0.1,209.2,209.19,75.58034322]
[1759295284125,0.1,209.2,209.19,82.38629187]
[1759295284321,0.76,209.2,209.19,82.38629187]
[1759295286336,0.76,209.2,209.19,77.60594865]
[1759295286538,0.76,209.2,209.19,82.38629187]
[1759295287549,0.1,209.2,209.19,82.38629187]
[1759295287750,0.76,209.2,209.19,82.38629187]
[1759295288852,0.76,209.2,209.19,87.88629187]
[1759295289159,0.76,209.2,209.19,83.10594865]
[1759295290747,0.1,209.2,209.19,87.88629187]
[1759295292135,0.1,209.24,209.23,4.77942933]
[1759295292336,0.1,209.24,209.23,39.94281984]
[1759295292925,0.1,209.24,209.23,73.48281984]
[1759295293376,0.76,209.24,209.23,73.1984967]
[1759295293835,0.76,209.24,209.23,40.2023179]
[1759295294035,0.76,209.24,209.23,68.43906737]
[1759295294254,0.76,209.24,209.23,73.2184967]
[1759295294439,0.76,209.24,209.23,68.43906737]
[1759295295540,0.76,209.24,209.23,47.63906737]
[1759295296660,0.76,209.24,209.23,40.36594865]
[1759295297358,0.1,209.24,209.23,45.14537798]
[1759295297855,0.1,209.24,209.23,50.64537798]
[1759295298654,0.1,209.24,209.23,65.04529513]
[1759295298857,0.1,209.24,209.23,59.54529513]
[1759295300162,0.1,209.24,209.23,11.86970112]
[1759295300659,0.1,209.24,209.23,45.40970112]
[1759295301272,0.1,209.24,209.23,74.67970112]
[1759295301455,0.1,209.24,209.23,74.15970112]
[1759295303866,0.1,209.24,209.23,74.67970112]
[1759295304055,0.1,209.24,209.23,74.15970112]
[1759295304253,0.1,209.24,209.23,81.95289616]
[1759295304441,0.1,209.24,209.23,87.27614669]
[1759295304644,0.1,209.24,209.23,86.75614669]
[1759295305366,0.1,209.24,209.23,87.27614669]
[1759295305546,0.1,209.24,209.23,86.75614669]
[1759295308481,0.1,209.24,209.23,81.43289616]
[1759295309774,0.1,209.24,209.23,86.93289616]
[1759295310478,0.1,209.24,209.23,87.45289616]
[1759295310767,0.1,209.28,209.26,20.8]
[1759295310974,0.1,209.28,209.27,40.34594865]
[1759295311774,0.78,209.28,209.27,40.34594865]
[1759295312155,0.78,209.28,209.27,45.12446444]
[1759295312358,0.78,209.28,209.27,82.36446444]
[1759295312989,0.1,209.28,209.27,82.36446444]
[1759295315168,0.1,209.32,209.31,20.8]
[1759295315377,0.1,209.32,209.31,68.70346683]
[1759295317366,0.1,209.32,209.31,73.48106942]
[1759295318482,0.1,209.32,209.31,130.71666343]
[1759295321180,0.1,209.32,209.31,131.21666343]
[1759295321884,0.1,209.32,209.31,130.69666343]
[1759295322281,0.78,209.32,209.31,97.15666343]
[1759295322480,0.1,209.32,209.31,130.69666343]
[1759295325289,0.78,209.32,209.31,40.15674628]
[1759295325484,0.78,209.32,209.31,73.67674628]
[1759295325880,0.1,209.32,209.31,73.96106942]
[1759295327296,0.1,209.32,209.31,87.55666343]
[1759295327987,0.1,209.32,209.31,130.67666343]
[1759295329387,0.1,209.41,209.32,13.59559401]
[1759295329569,0.68,209.38,209.36,20.8]
[1759295329771,0.1,209.41,209.4,20.8]
[1759295330089,0.1,209.41,209.4,54.32]
[1759295330292,0.78,209.41,209.4,54.32]
[1759295331376,0.78,209.41,209.37,4.91839503]
[1759295331585,0.78,209.41,209.32,40.89914369]
[1759295331586,0.68,209.4,209.33,4.77714613]
[1759295331889,0.68,209.39,209.34,33.52]
[1759295332097,0.68,209.38,209.34,70.76]
[1759295332277,0.68,209.37,209.34,70.76]
[1759295332592,0.68,209.36,209.34,70.76]
[1759295332793,0.68,209.35,209.34,70.76]
[1759295333482,0.68,209.35,209.34,82.34286658]
[1759295334667,0.68,209.35,209.34,48.82286658]
[1759295334869,0.68,209.35,209.34,82.34286658]
[1759295335887,0.71,209.35,209.34,44.04594865]
[1759295336091,0.71,209.35,209.34,77.56594865]
[1759295336874,0.71,209.35,209.34,114.78594865]
[1759295338091,0.71,209.35,209.34,119.56286658]
[1759295339996,0.71,209.35,209.34,114.78594865]
[1759295340371,0.71,209.35,209.34,107.98]
[1759295343177,0.71,209.35,209.34,74.46]
[1759295343476,0.71,209.35,209.34,112.75691793]
[1759295344080,0.71,209.39,209.34,116.73395682]
[1759295344305,0.71,209.39,209.37,20.8]
[1759295344479,0.71,209.39,209.38,33.52]
[1759295346100,0.71,209.39,209.38,34.02]
[1759295346303,0.71,209.39,209.38,38.79600534]
[1759295346598,0.81,209.41,209.38,38.79600534]
[1759295346773,0.81,209.41,209.4,20.8]
[1759295346978,0.1,209.41,209.4,54.32]
[1759295347193,0.81,209.41,209.4,54.32]
[1759295347586,0.1,209.41,209.4,59.09554918]
[1759295353199,0.1,209.41,209.4,63.07578327]
[1759295353579,0.1,209.41,209.4,29.55578327]
[1759295353887,0.1,209.41,209.4,63.07578327]
[1759295356010,0.1,209.41,209.4,100.29578327]
[1759295356708,0.1,209.41,209.4,96.31554918]
[1759295358003,0.1,209.41,209.4,116.8201372]
[1759295358305,0.1,209.41,209.4,122.13324322]
[1759295358481,1e-08,209.41,209.4,122.13324322]
[1759295358683,1e-08,209.41,209.4,168.28288825]
[1759295358888,1e-08,209.41,209.4,166.89727668]
[1759295359192,1e-08,209.45,209.44,77.70991715]
[1759295359396,1e-08,209.45,209.44,124.3817275]
[1759295359618,1e-08,209.45,209.44,124.9017275]
[1759295359782,1e-08,209.45,209.44,162.1217275]
[1759295359982,1e-08,209.45,209.44,166.89636462]
[1759295361813,1e-08,209.45,209.44,133.37636462]
[1759295361990,1e-08,209.45,209.44,171.69707113]
[1759295362391,1e-08,209.45,209.44,166.39636462]
[1759295362605,1e-08,209.45,209.44,132.85636462]
[1759295362794,1e-08,209.45,209.44,166.39636462]
[1759295363192,1e-08,209.45,209.44,132.85636462]
[1759295363515,1e-08,209.45,209.44,166.39636462]
[1759295364711,1e-08,209.45,209.44,166.91636462]
[1759295365693,1e-08,209.45,209.44,172.21707113]
[1759295366814,4.77238886,209.63,209.44,172.21707113]
[1759295366815,4.77238886,209.63,209.49,34.39559401]
[1759295367025,0.67,209.57,209.53,20.8]
[1759295367202,0.67,209.56,209.54,33.54]
[1759295367396,0.67,209.55,209.54,33.54]
[1759295368113,0.67,209.55,209.54,38.31235849]
[1759295368997,0.67,209.55,209.54,33.54]
[1759295370225,0.67,209.55,209.53,20.8]
[1759295370403,4.77115321,209.6,209.54,33.52]
[1759295370722,16.69637389,209.63,209.54,33.52]
[1759295370911,0.67,209.62,209.57,20.8]
[1759295371221,0.67,209.61,209.58,33.58]
[1759295371413,16.69637389,209.63,209.58,33.58]
[1759295371414,0.67,209.6,209.59,37.2]
[1759295372526,0.67,209.6,209.59,70.78]
[1759295373716,5.44099236,209.6,209.59,70.78]
[1759295377530,5.44099236,209.6,209.49,20.8]
[1759295377531,13.87991715,209.59,209.49,20.8]
[1759295377714,0.67,209.58,209.5,58.0]
[1759295377914,0.67,209.57,209.5,58.0]
[1759295378108,5.44190303,209.56,209.5,58.52]
[1759295378434,5.44190303,209.56,209.52,0.5]
[1759295378729,0.67,209.55,209.53,33.58]
[1759295379523,14.32015083,209.62,209.57,20.8]
[1759295379700,14.32015083,209.62,209.61,20.8]
[1759295379906,14.32015083,209.62,209.61,54.48]
[1759295380730,14.32015083,209.62,209.61,82.0317275]
[1759295380731,13.80015083,209.62,209.61,82.0317275]